fUSD/lending_fUSD_20241108
["ID","MTS","AMOUNT","RATE_DAILY","PERIOD"]
[341634983,1731048648552,-500.0,0.00027943,2]
[341634984,1731048648561,-2811.6,0.00027943,2]
[341634985,1731048648570,-204.6283196,0.00027943,2]
[341634996,1731048649852,-295.3716804,0.00027943,2]
[341634997,1731048649861,-500.0,0.00027943,2]
[341634998,1731048649872,-502.24,0.00027943,2]
[341634999,1731048649881,-1124.88,0.00027943,2]
[341635000,1731048649891,-500.0,0.00027943,2]
[341635001,1731048649900,-531.06,0.00027943,2]
[341635002,1731048649910,-500.0,0.00027943,2]
[341635003,1731048649919,-63.93376752,0.00027943,2]
[341635004,1731048649932,-436.06623248,0.00027943,2]
[341635005,1731048649941,-500.0,0.00027943,2]
[341635006,1731048649950,-57.50021236,0.00027943,2]
[341635007,1731048649966,-859.43978764,0.00027943,2]
[341635008,1731048649975,-500.0,0.00027943,2]
[341635009,1731048649984,-500.0,0.00027943,2]
[341635010,1731048649993,-500.0,0.00027943,2]
[341635011,1731048650003,-500.0,0.00027943,2]
[341635012,1731048650012,-500.0,0.00027943,2]
[341635013,1731048650021,-1909.77,0.00027943,2]
[341635014,1731048650030,-500.0,0.00027943,2]
[341635015,1731048650039,-500.0,0.00027943,2]
[341635016,1731048650048,-648.03,0.00027943,2]
[341635017,1731048650058,-500.0,0.00027943,2]
[341635018,1731048650067,-500.0,0.00027943,2]
[341635019,1731048650078,-500.0,0.00027943,2]
[341635020,1731048650087,-1473.31,0.00027943,2]
[341635021,1731048650096,-9.00206124,0.00027943,2]
[341635022,1731048650336,-421.47357165,0.00027669,2]
[341635023,1731048650348,-78.52642835,0.00027669,2]
[341635024,1731048650357,-871.54,0.00027669,2]
[341635025,1731048650366,-500.0,0.00027669,2]
[341635026,1731048650375,-525.14793876,0.00027943,2]
[341635027,1731048650385,-500.0,0.00027943,2]
[341635028,1731048650394,-500.0,0.00027943,2]
[341635029,1731048650403,-500.0,0.00027943,2]
[341635030,1731048650412,-7227.43,0.00027943,2]
[341635031,1731048650421,-500.0,0.00027943,2]
[341635032,1731048650430,-3930.18,0.00027943,2]
[341635033,1731048650439,-500.0,0.00027943,2]
[341635034,1731048650449,-871.54,0.00027943,2]
[341635035,1731048650459,-162.24938614,0.00027944,2]
[341635036,1731048650478,-37.75061386,0.00027944,2]
[341635037,1731048650487,-500.0,0.00027944,2]
[341635038,1731048650496,-221.26750707,0.00027944,2]
[341635039,1731048650518,-278.73249293,0.00027944,2]
[341635040,1731048650528,-500.0,0.00027944,2]
[341635041,1731048650537,-500.0,0.00027944,2]
[341635042,1731048650546,-500.0,0.00027944,2]
[341635043,1731048650555,-500.0,0.00027944,2]
[341635044,1731048650565,-500.0,0.00027944,2]
[341635045,1731048650574,-434.55239743,0.00027944,2]
[341635048,1731048912411,2000.0,0.00025,7]
[341635049,1731049027879,16720.86878647,0.000251,30]
[341635056,1731049376474,155.39,0.00015342,2]
[341635059,1731049630133,-373.83,0.00024065,2]
[341635060,1731049630158,-278.47,0.00025529,2]
[341635061,1731049630181,-278.47,0.00025939,2]
[341635062,1731049630202,-178.31,0.00025968,2]
[341635063,1731049630223,-172.04,0.00026009,2]
[341635064,1731049630244,-250.0,0.00026013,2]
[341635065,1731049630267,-250.0,0.00026106,2]
[341635066,1731049630288,-152.76,0.00026144,2]
[341635067,1731049630309,-7806.74,0.00026144,2]
[341635068,1731049630332,-201.32,0.00026209,30]
[341635069,1731049630354,-200.0,0.00026268,2]
[341635070,1731049630375,-373.83,0.00026329,2]
[341635071,1731049630399,-278.47,0.00026349,2]
[341635072,1731049630421,-433.5339,0.00026401,2]
[341635073,1731049630445,-259.02,0.00026457,120]
[341635074,1731049630469,-15968.06,0.00026501,2]
[341635075,1731049630490,-1090.0,0.0002652,2]
[341635076,1731049630511,-290.746,0.000266,2]
[341635077,1731049630535,-181.41,0.00026652,2]
[341635078,1731049630557,-152.0,0.00026675,3]
[341635079,1731049630579,-168.77,0.00026696,2]
[341635080,1731049630601,-278.47,0.0002676,2]
[341635081,1731049630623,-1000.0,0.00026977,2]
[341635082,1731049630646,-150.0,0.00026977,2]
[341635083,1731049630666,-800.0,0.00026986,120]
[341635084,1731049630685,-155.04861757,0.00027,2]
[341635085,1731049630706,-436.12,0.000271,7]
[341635086,1731049630726,-948.33,0.00027123,2]
[341635087,1731049630748,-278.47,0.0002717,2]
[341635088,1731049630770,-153.0,0.00027397,2]
[341635089,1731049630791,-153.0,0.00027397,2]
[341635090,1731049631088,-153.0,0.00027397,2]
[341635091,1731049631117,-153.0,0.00027397,2]
[341635092,1731049631140,-153.0,0.00027397,2]
[341635093,1731049631165,-153.0,0.00027397,2]
[341635094,1731049631187,-150.0,0.000275,3]
[341635095,1731049631209,-150.833,0.00027535,2]
[341635096,1731049631231,-1446.321,0.00027535,2]
[341635097,1731049631252,-150.0,0.00027535,2]
[341635098,1731049631274,-1989.0,0.00027535,2]
[341635099,1731049631295,-799.948,0.00027535,2]
[341635100,1731049631316,-2909.0,0.00027535,2]
[341635101,1731049631337,-411.246,0.00027535,2]
[341635102,1731049631358,-813.0,0.00027535,2]
[341635103,1731049631378,-192.85760387,0.00027569,2]
[341635104,1731049631403,-22689.0714,0.0002757,2]
[341635105,1731049631423,-500.0,0.0002757,2]
[341635106,1731049631446,-278.47,0.0002758,2]
[341635107,1731049631470,-150.0,0.000276,2]
[341635108,1731049631493,-448.0285881,0.00027668,2]
[341635109,1731049631514,-500.0,0.00027669,2]
[341635110,1731049631537,-500.0,0.00027669,2]
[341635111,1731049631558,-500.0,0.00027669,2]
[341635112,1731049631580,-500.0,0.00027669,2]
[341635113,1731049631601,-500.0,0.00027669,2]
[341635114,1731049631625,-500.0,0.00027669,2]
[341635115,1731049631649,-500.0,0.00027669,2]
[341635116,1731049631670,-500.0,0.00027669,2]
[341635117,1731049631691,-500.0,0.00027669,2]
[341635118,1731049631712,-500.0,0.00027669,2]
[341635119,1731049631734,-500.0,0.00027669,2]
[341635120,1731049631755,-500.0,0.00027669,2]
[341635121,1731049631774,-500.0,0.00027669,2]
[341635122,1731049631795,-500.0,0.00027669,2]
[341635123,1731049631816,-500.0,0.00027669,2]
[341635124,1731049631836,-500.0,0.00027669,2]
[341635125,1731049631857,-500.0,0.00027669,2]
[341635126,1731049631879,-500.0,0.00027669,2]
[341635127,1731049631901,-500.0,0.00027669,2]
[341635128,1731049631923,-349.64974973,0.00027669,2]
[341635129,1731049631944,-500.0,0.00027669,2]
[341635130,1731049631966,-500.0,0.00027669,2]
[341635131,1731049631988,-500.0,0.00027669,2]
[341635132,1731049632010,-500.0,0.00027669,2]
[341635133,1731049632030,-500.0,0.00027669,2]
[341635134,1731049632051,-500.0,0.00027669,2]
[341635135,1731049632071,-500.0,0.00027669,2]
[341635136,1731049632093,-500.0,0.00027669,2]
[341635137,1731049632115,-500.0,0.00027669,2]
[341635138,1731049632136,-500.0,0.00027669,2]
[341635139,1731049632159,-500.0,0.00027669,2]
[341635140,1731049632180,-500.0,0.00027669,2]
[341635141,1731049632200,-647.19,0.00027669,2]
[341635142,1731049632221,-503.42463554,0.00027669,2]
[341635143,1731049632241,-581.49,0.00027669,2]
[341635144,1731049632262,-500.0,0.00027669,2]
[341635145,1731049632283,-500.0,0.00027669,2]
[341635146,1731049632303,-621.04,0.00027669,2]
[341635147,1731049632323,-500.0,0.00027669,2]
[341635148,1731049632344,-1000.0,0.00027669,2]
[341635149,1731049632364,-500.0,0.00027669,2]
[341635150,1731049632384,-500.0,0.00027669,2]
[341635151,1731049632406,-569.4,0.00027669,2]
[341635152,1731049632427,-500.0,0.00027669,2]
[341635153,1731049632448,-631.46,0.00027669,2]
[341635154,1731049632469,-500.0,0.00027669,2]
[341635155,1731049632490,-500.0,0.00027669,2]
[341635156,1731049632512,-500.0,0.00027669,2]
[341635157,1731049632534,-667.74,0.00027669,2]
[341635158,1731049632558,-500.0,0.00027669,5]
[341635159,1731049632581,-500.0,0.00027669,2]
[341635160,1731049632603,-500.0,0.00027669,2]
[341635161,1731049632626,-500.0,0.00027669,2]
[341635162,1731049632648,-500.0,0.00027669,2]
[341635163,1731049632670,-500.0,0.00027669,2]
[341635164,1731049632691,-500.0,0.00027669,2]
[341635165,1731049632715,-500.0,0.00027669,2]
[341635166,1731049632737,-500.0,0.00027669,2]
[341635167,1731049632760,-500.0,0.00027669,2]
[341635168,1731049632782,-500.0,0.00027669,2]
[341635169,1731049632803,-500.0,0.00027669,2]
[341635170,1731049632825,-500.0,0.00027669,2]
[341635171,1731049632848,-500.0,0.00027669,2]
[341635172,1731049632871,-500.0,0.00027669,2]
[341635173,1731049632893,-500.0,0.00027669,2]
[341635174,1731049632916,-500.0,0.00027669,2]
[341635175,1731049632937,-500.0,0.00027669,2]
[341635176,1731049632959,-500.0,0.00027669,2]
[341635177,1731049632981,-524.83,0.00027669,2]
[341635178,1731049633001,-500.0,0.00027669,2]
[341635179,1731049633021,-500.0,0.00027669,2]
[341635180,1731049633043,-500.0,0.00027669,2]
[341635181,1731049633064,-500.0,0.00027669,2]
[341635182,1731049633085,-500.0,0.00027669,2]
[341635183,1731049633107,-500.0,0.00027669,2]
[341635184,1731049633130,-500.0,0.00027669,2]
[341635185,1731049633158,-500.0,0.00027669,2]
[341635186,1731049633179,-500.0,0.00027669,2]
[341635187,1731049633202,-500.0,0.00027669,2]
[341635188,1731049633225,-782.82,0.00027669,2]
[341635189,1731049633249,-500.0,0.00027669,2]
[341635190,1731049633270,-251.40188609,0.00027669,2]
[341635191,1731049633293,-500.0,0.00027669,2]
[341635192,1731049633315,-500.0,0.00027669,2]
[341635193,1731049633336,-500.0,0.00027669,2]
[341635194,1731049633361,-226.57071682,0.00027669,2]
[341635195,1731049633384,-500.0,0.00027669,2]
[341635196,1731049633409,-500.0,0.00027669,2]
[341635197,1731049633430,-500.0,0.00027669,2]
[341635198,1731049633452,-500.0,0.00027669,2]
[341635199,1731049633473,-500.0,0.00027669,2]
[341635200,1731049633495,-272.45324165,0.00027669,2]
[341635201,1731049646883,-227.54675835,0.00027669,2]
[341635202,1731049646906,-500.0,0.00027669,2]
[341635203,1731049646927,-500.0,0.00027669,2]
[341635204,1731049646947,-500.0,0.00027669,2]
[341635205,1731049646967,-500.0,0.00027669,2]
[341635206,1731049646988,-500.0,0.00027669,2]
[341635207,1731049647009,-300.0,0.00027669,2]
[341635208,1731049647033,-500.0,0.00027669,2]
[341635209,1731049647053,-500.0,0.00027669,2]
[341635210,1731049647073,-650.48,0.00027669,2]
[341635211,1731049647096,-500.0,0.00027669,2]
[341635212,1731049647117,-500.0,0.00027669,2]
[341635213,1731049647139,-500.0,0.00027669,2]
[341635214,1731049647168,-500.0,0.00027669,2]
[341635215,1731049647190,-11.62336614,0.00027669,2]
[341635237,1731049832505,-6211.98470002,0.0002666,2]
[341635239,1731049832516,-1926.2054279,0.0002666,2]
[341635254,1731049832650,-1061.80987208,0.0002666,2]
[341635256,1731049832659,-515.5,0.00026813,120]
[341635258,1731049832670,-250.0,0.00026814,2]
[341635260,1731049832680,-1000.0,0.00026816,2]
[341635262,1731049832689,-2204.74484139,0.00027569,2]
[341635264,1731049832700,-2000.0,0.0002766,2]
[341635266,1731049832709,-178.94528653,0.00027668,2]
[341635269,1731049832726,-321.05471347,0.00027668,2]
[341635271,1731049832736,-166.51355794,0.00027668,2]
[341635273,1731049832748,-312.12669269,0.00027668,2]
[341635402,1731049838491,-290.746,0.000266,2]
[341635403,1731049838503,-187.87330731,0.00027668,2]
[341635404,1731049838512,-500.0,0.00027668,2]
[341635405,1731049838521,-1180.97,0.00027668,2]
[341635406,1731049838530,-500.0,0.00027668,2]
[341635407,1731049838540,-500.0,0.00027668,2]
[341635408,1731049838550,-500.0,0.00027668,2]
[341635409,1731049838559,-537.97,0.00027668,2]
[341635410,1731049838568,-668.44,0.00027668,2]
[341635411,1731049838577,-500.0,0.00027668,2]
[341635412,1731049838589,-500.0,0.00027668,2]
[341635413,1731049838599,-500.0,0.00027668,2]
[341635414,1731049838607,-588.32,0.00027668,2]
[341635415,1731049838617,-488.37663386,0.00027669,2]
[341635416,1731049838627,-500.0,0.00027669,2]
[341635417,1731049838636,-500.0,0.00027669,2]
[341635418,1731049838646,-500.0,0.00027669,2]
[341635419,1731049838656,-544.41,0.00027669,2]
[341635420,1731049838666,-500.0,0.00027669,2]
[341635421,1731049838676,-426.42269143,0.00027669,2]
[341635422,1731049838687,-73.57730857,0.00027669,2]
[341635423,1731049838697,-500.0,0.00027669,2]
[341635424,1731049838706,-500.0,0.00027669,2]
[341635425,1731049838715,-500.0,0.00027669,2]
[341635426,1731049838724,-500.0,0.00027669,2]
[341635427,1731049838733,-500.0,0.00027669,2]
[341635428,1731049838742,-450.95264064,0.00027669,2]
[341635429,1731049838755,-49.04735936,0.00027669,2]
[341635430,1731049838764,-583.85,0.00027669,2]
[341635431,1731049838773,-500.0,0.00027669,2]
[341635432,1731049838783,-500.0,0.00027669,2]
[341635433,1731049838792,-500.0,0.00027669,2]
[341635434,1731049838802,-541.84513261,0.00027669,2]
[341635435,1731049838811,-202.16747991,0.00027669,2]
[341635436,1731049838823,-297.83252009,0.00027669,2]
[341635437,1731049838832,-82.18970743,0.00027669,2]
[341635438,1731049838851,-417.81029257,0.00027669,2]
[341635439,1731049838860,-518.51579241,0.00027669,2]
[341635440,1731049838870,-500.0,0.00027669,2]
[341635441,1731049838879,-500.0,0.00027669,2]
[341635442,1731049838888,-500.0,0.00027669,2]
[341635443,1731049838897,-500.0,0.00027669,2]
[341635444,1731049838907,-358.95,0.00027669,2]
[341635445,1731049838916,-500.0,0.00027669,2]
[341635446,1731049838925,-368.2311573,0.00027669,2]
[341635447,1731049838935,-500.0,0.00027669,2]
[341635448,1731049838945,-500.0,0.00027669,2]
[341635449,1731049838953,-500.0,0.00027669,2]
[341635450,1731049838963,-546.63,0.00027669,2]
[341635451,1731049838972,-500.0,0.00027669,2]
[341635452,1731049838982,-500.0,0.00027669,2]
[341635453,1731049838991,-240.53655744,0.00027669,2]
[341635454,1731049839000,-500.0,0.00027669,2]
[341635455,1731049839010,-500.0,0.00027669,2]
[341635456,1731049839019,-500.0,0.00027669,2]
[341635457,1731049839028,-500.0,0.00027669,2]
[341635458,1731049839039,-500.0,0.00027669,2]
[341635459,1731049839048,-114.31620028,0.00027669,2]
[341635460,1731049839060,-385.68379972,0.00027669,2]
[341635461,1731049839070,-500.0,0.00027669,2]
[341635462,1731049839079,-154.31620028,0.00027669,2]
[341635463,1731049839090,-345.68379972,0.00027669,2]
[341635464,1731049839099,-500.0,0.00027669,2]
[341635465,1731049839108,-500.0,0.00027669,2]
[341635466,1731049839118,-500.0,0.00027669,2]
[341635467,1731049839127,-500.0,0.00027669,2]
[341635468,1731049839136,-500.0,0.00027669,2]
[341635470,1731049839146,-500.0,0.00027669,2]
[341635472,1731049839155,-500.0,0.00027669,2]
[341635474,1731049839165,-500.0,0.00027669,2]
[341635476,1731049839174,-645.06687457,0.00027669,2]
[341635478,1731049839183,-826.92,0.00027669,2]
[341635480,1731049839192,-247.17627056,0.00027669,2]
[341635482,1731049839203,-252.82372944,0.00027669,2]
[341635484,1731049839212,-150.0,0.00027669,2]
[341635485,1731049839221,-500.0,0.00027669,2]
[341635487,1731049839231,-579.8,0.00027669,2]
[341635489,1731049839240,-500.0,0.00027669,2]
[341635491,1731049839249,-369.59784943,0.00027669,2]
[341635492,1731049839259,-503.18689722,0.00027669,2]
[341635494,1731049839268,-934.51,0.00027669,2]
[341635496,1731049839277,-500.0,0.00027669,2]
[341635498,1731049839286,-500.0,0.00027669,2]
[341635500,1731049839295,-500.0,0.00027669,2]
[341635502,1731049839305,-341.71167934,0.00027669,2]
[341635504,1731049839314,-287.52307739,0.00027669,2]
[341635625,1731049840497,-212.47692261,0.00027669,2]
[341635627,1731049840506,-556.0,0.00027669,2]
[341635629,1731049840514,-500.0,0.00027669,2]
[341635631,1731049840523,-500.0,0.00027669,2]
[341635633,1731049840533,-500.0,0.00027669,2]
[341635635,1731049840543,-500.0,0.00027669,2]
[341635637,1731049840552,-500.0,0.00027669,2]
[341635639,1731049840562,-500.0,0.00027669,2]
[341635641,1731049840571,-383.68591203,0.00027669,2]
[341635643,1731049840580,-500.0,0.00027669,2]
[341635645,1731049840593,-500.0,0.00027669,2]
[341635646,1731049840603,-500.0,0.00027669,2]
[341635648,1731049840612,-500.0,0.00027669,2]
[341635650,1731049840621,-500.0,0.00027669,2]
[341635652,1731049840632,-500.0,0.00027669,2]
[341635654,1731049840641,-500.0,0.00027669,2]
[341635656,1731049840651,-500.0,0.00027669,2]
[341635658,1731049840662,-500.0,0.00027669,2]
[341635660,1731049840672,-500.0,0.00027669,2]
[341635662,1731049840682,-500.0,0.00027669,2]
[341635664,1731049840692,-500.0,0.00027669,2]
[341635666,1731049840702,-723.89,0.00027669,2]
[341635668,1731049840711,-500.0,0.00027669,2]
[341635670,1731049840720,-281.99052312,0.00027669,2]
[341635672,1731049840730,-457.91659275,0.00027669,2]
[341635674,1731049840739,-505.44416419,0.00027669,2]
[341635676,1731049840748,-46.31414504,0.00027669,2]
[341635678,1731049840763,-453.68585496,0.00027669,2]
[341635680,1731049840773,-500.0,0.00027669,2]
[341635682,1731049840782,-500.0,0.00027669,2]
[341635684,1731049840791,-500.0,0.00027669,2]
[341635686,1731049840802,-500.0,0.00027669,2]
[341635688,1731049840811,-598.56,0.00027669,2]
[341635690,1731049840820,-500.0,0.00027669,2]
[341635692,1731049840829,-263.46184504,0.00027669,2]
[341635704,1731049840937,-295.81815496,0.00027669,2]
[341635706,1731049840946,-144.18184504,0.00027669,2]
[341635999,1731049843793,-355.81815496,0.00027669,2]
[341636000,1731049843802,-500.0,0.00027669,2]
[341636002,1731049843816,-500.0,0.00027669,2]
[341636004,1731049843825,-500.0,0.00027669,2]
[341636006,1731049843834,-295.73538415,0.00027669,2]
[341636008,1731049843846,-204.26461585,0.00027669,2]
[341636010,1731049843856,-692.31,0.00027669,2]
[341636012,1731049843865,-842.59,0.00027669,2]
[341636014,1731049843874,-500.0,0.00027669,2]
[341636016,1731049843883,-500.0,0.00027669,2]
[341636018,1731049843893,-500.0,0.00027669,2]
[341636020,1731049843903,-500.0,0.00027669,2]
[341636022,1731049843912,-155.97106408,0.00027669,2]
[341636024,1731049843924,-344.02893592,0.00027669,2]
[341636026,1731049843933,-900.38,0.00027669,2]
[341636028,1731049843943,-1267.25,0.00027669,2]
[341636030,1731049843952,-7.70704271,0.00027669,2]
[341636032,1731049843964,-184.8461407,0.00027669,2]
[341636034,1731049843974,-520.9,0.00027669,2]
[341636036,1731049843983,-500.0,0.00027669,2]
[341636038,1731049843992,-500.0,0.00027669,2]
[341636040,1731049844002,-500.0,0.00027669,2]
[341636042,1731049844011,-396.45385915,0.00027669,2]
[341636045,1731049844030,-103.54614085,0.00027669,2]
[341636047,1731049844040,-500.0,0.00027669,2]
[341636049,1731049844049,-500.0,0.00027669,2]
[341636051,1731049844064,-192.8708714,0.00027669,2]
[341636053,1731049844074,-500.0,0.00027669,2]
[341636055,1731049844084,-1425.02,0.00027669,2]
[341636057,1731049844095,-500.0,0.00027669,2]
[341636059,1731049844107,-1461.39,0.00027669,2]
[341636061,1731049844118,-500.0,0.00027669,2]
[341636063,1731049844129,-252.65106846,0.00027669,2]
[341636065,1731049844142,-247.34893154,0.00027669,2]
[341636067,1731049844152,-500.0,0.00027669,2]
[341636069,1731049844162,-500.0,0.00027669,2]
[341636071,1731049844175,-500.0,0.00027669,2]
[341636073,1731049844185,-500.0,0.00027669,2]
[341636075,1731049844195,-500.0,0.00027669,2]
[341636077,1731049844204,-2190.37,0.00027669,2]
[341636079,1731049844214,-906.43,0.00027669,2]
[341636081,1731049844224,-714.09,0.00027669,2]
[341636083,1731049844235,-1830.19,0.00027669,2]
[341636085,1731049844245,-500.0,0.00027669,2]
[341636087,1731049844255,-500.0,0.00027669,2]
[341636089,1731049844264,-500.0,0.00027669,2]
[341636091,1731049844274,-500.0,0.00027669,2]
[341636093,1731049844285,-623.01,0.00027669,2]
[341636095,1731049844294,-624.55,0.00027669,2]
[341636097,1731049844306,-651.39,0.00027669,2]
[341636099,1731049844315,-918.6,0.00027669,2]
[341636101,1731049844325,-862.67,0.00027669,2]
[341636103,1731049844334,-500.0,0.00027669,2]
[341636105,1731049844344,-500.0,0.00027669,2]
[341636107,1731049844353,-508.93,0.00027669,2]
[341636109,1731049844363,-500.0,0.00027669,2]
[341636111,1731049844372,-500.0,0.00027669,2]
[341636113,1731049844382,-500.0,0.00027669,2]
[341636115,1731049844391,-500.0,0.00027669,2]
[341636117,1731049844400,-500.0,0.00027669,2]
[341636119,1731049844410,-510.01,0.00027669,2]
[341636121,1731049844419,-621.03,0.00027669,2]
[341636123,1731049844428,-539.81,0.00027669,2]
[341636125,1731049844438,-500.0,0.00027669,2]
[341636127,1731049844447,-547.06,0.00027669,2]
[341636129,1731049844456,-500.0,0.00027669,2]
[341636131,1731049844466,-500.0,0.00027669,2]
[341636133,1731049844475,-500.0,0.00027669,2]
[341636135,1731049844485,-1282.22,0.00027669,2]
[341636137,1731049844496,-671.82,0.00027669,2]
[341636139,1731049844506,-6926.29,0.00027669,2]
[341636141,1731049844515,-500.0,0.00027669,2]
[341636143,1731049844524,-500.0,0.00027669,2]
[341636145,1731049844533,-500.0,0.00027669,2]
[341636147,1731049844542,-688.03,0.00027669,2]
[341636149,1731049844552,-500.0,0.00027669,2]
[341636151,1731049844565,-582.5,0.00027669,2]
[341636152,1731049844574,-500.0,0.00027669,2]
[341636155,1731049844586,-667.63,0.00027669,2]
[341636157,1731049844596,-1078.01,0.00027669,2]
[341636158,1731049844606,-500.0,0.00027669,2]
[341636161,1731049844616,-883.42,0.00027669,2]
[341636163,1731049844626,-500.0,0.00027669,2]
[341636164,1731049844635,-2811.6,0.00027669,2]
[341636166,1731049844644,-500.0,0.00027669,2]
[341636169,1731049844654,-500.0,0.00027669,2]
[341636170,1731049844665,-1180.09,0.00027669,2]
[341636172,1731049844675,-500.0,0.00027669,2]
[341636174,1731049844684,-1475.98,0.00027669,2]
[341636177,1731049844693,-1113.4,0.00027669,2]
[341636178,1731049844702,-500.0,0.00027669,2]
[341636180,1731049844711,-632.55,0.00027669,2]
[341636182,1731049844720,-500.0,0.00027669,2]
[341636184,1731049844730,-500.0,0.00027669,2]
[341636186,1731049844739,-500.0,0.00027669,2]
[341636188,1731049844748,-500.0,0.00027669,2]
[341636190,1731049844756,-500.0,0.00027669,2]
[341636192,1731049844765,-500.0,0.00027669,2]
[341636194,1731049844774,-763.94,0.00027669,2]
[341636196,1731049844783,-798.91,0.00027669,2]
[341636198,1731049844792,-500.0,0.00027669,2]
[341636200,1731049844801,-500.0,0.00027669,2]
[341636202,1731049844814,-500.0,0.00027669,2]
[341636204,1731049844823,-500.0,0.00027669,2]
[341636206,1731049844832,-500.0,0.00027669,2]
[341636208,1731049844842,-500.0,0.00027669,2]
[341636210,1731049844851,-500.0,0.00027669,2]
[341636212,1731049844860,-2442.08,0.00027669,2]
[341636214,1731049844869,-500.0,0.00027669,2]
[341636216,1731049844879,-500.0,0.00027669,2]
[341636218,1731049844888,-500.0,0.00027669,2]
[341636221,1731049844897,-500.0,0.00027669,2]
[341636223,1731049844906,-500.0,0.00027669,2]
[341636224,1731049844915,-500.0,0.00027669,2]
[341636226,1731049844924,-500.0,0.00027669,2]
[341636228,1731049844934,-500.0,0.00027669,2]
[341636230,1731049844943,-3766.42,0.00027669,2]
[341636232,1731049844952,-955.42,0.00027669,2]
[341636234,1731049844961,-545.07,0.00027669,2]
[341636236,1731049844971,-500.0,0.00027669,2]
[341636238,1731049844980,-373.52366452,0.00027669,2]
[341636240,1731049844989,-1031.97,0.00027669,2]
[341636242,1731049844999,-500.0,0.00027669,2]
[341636244,1731049845008,-753.64,0.00027669,2]
[341636246,1731049845017,-500.0,0.00027669,2]
[341636249,1731049845028,-500.0,0.00027669,2]
[341636251,1731049845038,-500.0,0.00027669,2]
[341636253,1731049845047,-500.0,0.00027669,2]
[341636255,1731049845058,-1574.83,0.00027669,2]
[341636257,1731049845067,-837.68,0.00027669,2]
[341636258,1731049845076,-500.0,0.00027669,2]
[341636261,1731049845086,-500.0,0.00027669,2]
[341636263,1731049845096,-500.0,0.00027669,2]
[341636265,1731049845106,-500.0,0.00027669,2]
[341636267,1731049845115,-500.0,0.00027669,2]
[341636268,1731049845123,-500.0,0.00027669,2]
[341636270,1731049845134,-500.0,0.00027669,2]
[341636272,1731049845144,-500.0,0.00027669,2]
[341636274,1731049845153,-500.0,0.00027669,2]
[341636276,1731049845163,-1057.05,0.00027669,2]
[341636278,1731049845173,-500.0,0.00027669,2]
[341636280,1731049845183,-500.0,0.00027669,2]
[341636282,1731049845193,-500.0,0.00027669,2]
[341636284,1731049845202,-500.0,0.00027669,2]
[341636286,1731049845212,-500.0,0.00027669,2]
[341636288,1731049845222,-500.0,0.00027669,2]
[341636290,1731049845231,-500.0,0.00027669,2]
[341636292,1731049845240,-500.0,0.00027669,2]
[341636294,1731049845249,-168.92683291,0.00027669,2]
[341636296,1731049845259,-557.18,0.00027669,2]
[341636298,1731049845268,-500.0,0.00027669,2]
[341636300,1731049845277,-535.97,0.00027669,2]